bitfinex-derivatives/quotes_SOLF0:USTF0_20250331
["timestamp","ask_amount","ask_price","bid_price","bid_amount"]
[1743411992269,36.13164033,124.87,124.79,38.0935]
[1743411992573,8.0133,124.82,124.79,38.0935]
[1743411993179,8.0133,124.82,124.79,38.14447458]
[1743411993680,8.0136,124.81,124.79,38.14447458]
[1743411993870,73.67590914,124.87,124.79,0.05097458]
[1743411994075,0.05629625,124.81,124.76,324.02]
[1743411994380,8.0151,124.79,124.76,288.04]
[1743411994578,0.05582767,124.8,124.77,0.05837603]
[1743411994883,0.05582767,124.8,124.73,4.0753]
[1743411995075,0.05582767,124.8,124.77,0.05776247]
[1743411995382,8.0155,124.78,124.77,0.05776247]
[1743411995572,16.0121,124.93,124.77,60.05776247]
[1743411995880,37.59590914,124.91,124.81,37.59590914]
[1743411996075,8.0129,124.82,124.81,35.98]
[1743411996475,35.98,124.84,124.75,37.59590914]
[1743411996671,73.55590914,124.83,124.73,4.0753]
[1743411996880,0.05824491,124.81,124.78,0.05266846]
[1743411997477,8.0149,124.79,124.78,0.05266846]
[1743411997787,43.9549,124.79,124.78,0.05266846]
[1743412002687,0.05824491,124.81,124.78,0.05266846]
[1743412002880,0.05824491,124.81,124.78,2.16586846]
[1743412003575,0.05824491,124.81,124.78,10.18086846]
[1743412003984,0.05824491,124.81,124.78,2.16586846]
[1743412004883,0.05824491,124.81,124.78,10.18126846]
[1743412005488,0.05824491,124.81,124.79,8.0147]
[1743412005688,0.05824491,124.81,124.78,2.16586846]
[1743412006689,0.05824491,124.81,124.79,8.0145]
[1743412007087,0.05824491,124.81,124.8,8.0142]
[1743412007288,0.05824491,124.81,124.8,43.4342]
[1743412007488,39.4993,124.89,124.81,37.59590914]
[1743412007787,8.01,124.87,124.81,37.59590914]
[1743412008289,4.0993,124.89,124.81,37.59590914]
[1743412008492,0.05909416,124.85,124.83,0.05782906]
[1743412008989,35.34,124.91,124.83,37.6537382]
[1743412008990,8.008,124.9,124.83,37.6537382]
[1743412009187,8.008,124.9,124.84,35.34]
[1743412009385,35.34,124.91,124.85,8.0107]
[1743412009587,8.0084,124.89,124.84,35.34]
[1743412009782,35.34,124.91,124.81,37.59590914]
[1743412009993,8.01,124.87,124.82,8.0126]
[1743412010191,8.06921764,124.87,124.85,0.05547363]
[1743412011089,8.0104,124.86,124.85,0.05547363]
[1743412011287,35.25921764,124.87,124.79,2.1034]
[1743412011483,35.2,124.87,124.81,8.0132]
[1743412011683,72.79590914,124.87,124.78,288.3]
[1743412011983,2.1626,124.86,124.78,8.0153]
[1743412012290,2.1626,124.86,124.75,72.75590914]
[1743412012588,0.05072118,124.83,124.81,0.05181151]
[1743412013285,0.05072118,124.83,124.81,8.06491151]
[1743412014492,0.05072118,124.83,124.81,0.05181151]
[1743412015593,8.06302118,124.83,124.81,0.05181151]
[1743412016292,0.05072118,124.83,124.81,8.06541151]
[1743412016494,0.05072118,124.83,124.81,0.05181151]
[1743412016695,0.05072118,124.83,124.82,8.0129]
[1743412016895,0.05072118,124.83,124.81,0.05181151]
[1743412017402,8.0129,124.82,124.81,0.05181151]
[1743412019397,8.0129,124.82,124.74,64.25721342]
[1743412019398,34.95072118,124.83,124.74,64.25721342]
[1743412019600,34.9,124.83,124.74,29.35721342]
[1743412019797,8.0145,124.8,124.74,64.17721342]
[1743412020299,0.05307514,124.78,124.77,8.0156]
[1743412020692,0.05307514,124.78,124.76,0.0578747]
[1743412021002,0.05307514,124.78,124.77,8.0161]
[1743412022594,34.68,124.84,124.76,23.35248812]
[1743412022797,34.68,124.84,124.76,23.29461342]
[1743412023302,8.0137,124.81,124.76,23.29461342]
[1743412023497,34.68,124.84,124.76,23.29461342]
[1743412023697,0.06002467,124.8,124.78,8.0155]
[1743412024202,0.06002467,124.8,124.78,8.07149466]
[1743412024401,0.06002467,124.8,124.78,0.05599466]
[1743412024793,8.07462467,124.8,124.78,0.05599466]
[1743412025195,8.07462467,124.8,124.78,8.07139466]
[1743412025603,0.06002467,124.8,124.78,8.07139466]
[1743412025799,4.0624,124.87,124.79,34.58]
[1743412026106,36.6518,124.9,124.82,23.29461342]
[1743412026404,34.58,124.91,124.85,8.0105]
[1743412026801,8.0094,124.88,124.85,8.0105]
[1743412027005,0.05805316,124.89,124.87,0.06144244]
[1743412027406,0.05805316,124.89,124.84,8.011]
[1743412027605,0.05805316,124.89,124.87,0.05604521]
[1743412027807,8.0091,124.88,124.87,0.05604521]
[1743412035915,42.06,124.88,124.76,46.67283567]
[1743412036118,23.29461342,124.87,124.77,2.1323]
[1743412036714,8.0132,124.82,124.8,8.0142]
[1743412036922,34.04,124.84,124.77,2.1323]
[1743412037217,8.0137,124.81,124.8,0.0546909]
[1743412037417,0.05092388,124.82,124.8,0.0546909]
[1743412038117,8.06442388,124.82,124.8,8.0687909]
[1743412038319,0.05092388,124.82,124.8,0.0546909]
[1743412038618,8.0106,124.86,124.84,8.0115]
[1743412038917,33.98,124.87,124.8,33.98]
[1743412039223,33.98,124.87,124.8,57.27461342]
[1743412039714,0.05584345,124.85,124.83,8.0119]
[1743412039916,33.94,124.89,124.83,8.0119]
[1743412040117,0.05440893,124.85,124.83,8.06984817]
[1743412040317,8.06550893,124.85,124.83,0.05794817]
[1743412040920,0.05440893,124.85,124.83,0.05794817]
[1743412041420,8.06570893,124.85,124.83,0.05794817]
[1743412041621,0.05440893,124.85,124.83,0.05794817]
[1743412042418,8.0116,124.84,124.83,0.05794817]
[1743412042624,0.05440893,124.85,124.83,0.05794817]
[1743412044126,8.0116,124.84,124.83,0.05794817]
[1743412056230,8.06570893,124.85,124.83,0.05794817]
[1743412056539,14.55529291,124.92,124.84,33.22]
[1743412056730,33.22,124.93,124.85,14.55529291]
[1743412056935,8.0069,124.92,124.85,14.55529291]
[1743412057133,33.22,124.93,124.85,14.55529291]
[1743412057433,14.55529291,124.92,124.85,14.55529291]
[1743412057639,14.60669389,124.9,124.88,0.05827354]
[1743412057937,41.2484,124.89,124.88,0.05827354]
[1743412059334,8.0084,124.89,124.88,0.05827354]
[1743412060434,22.56369291,124.89,124.88,7.354e-05]
[1743412061743,8.0126,124.83,124.8,321.48]
[1743412061937,47.69529291,124.87,124.79,6.1058]
[1743412062539,14.55529291,124.85,124.79,6.1058]
[1743412062738,33.16,124.84,124.79,6.1058]
[1743412062942,0.06050814,124.83,124.81,0.05362625]
[1743412063444,8.0129,124.82,124.81,0.05362625]
[1743412064941,8.0129,124.82,124.81,2.625e-05]
[1743412065441,8.0129,124.82,124.75,9.0785]
[1743412065442,22.57529291,124.82,124.69,186.08140291]
[1743412065637,14.55529291,124.77,124.7,91.50006128]
[1743412065838,33.1,124.76,124.7,91.50006128]
[1743412066339,14.55529291,124.73,124.7,88.43766128]
[1743412066539,8.02,124.71,124.7,88.43766128]
[1743412066738,8.02,124.71,124.7,88.48903989]
[1743412067241,8.02,124.71,124.7,76.07223989]
[1743412067444,22.57529291,124.71,124.7,49.89523989]
[1743412067646,8.02,124.71,124.7,3.989e-05]
[1743412068644,33.16,124.71,124.7,3.989e-05]
[1743412069447,23.40044961,124.74,124.7,3.989e-05]
[1743412069448,33.16,124.72,124.7,3.989e-05]
[1743412069655,33.14,124.72,124.7,3.989e-05]
[1743412070951,23.40044961,124.74,124.7,3.989e-05]
[1743412071150,33.08,124.72,124.7,3.989e-05]
[1743412071347,23.40044961,124.74,124.7,3.989e-05]
[1743412071547,33.06,124.73,124.7,3.989e-05]
[1743412072853,41.079,124.73,124.7,3.989e-05]
[1743412073054,33.06,124.73,124.7,3.989e-05]
[1743412077146,33.06,124.73,124.7,8.02033989]
[1743412077347,33.06,124.73,124.7,3.989e-05]
[1743412077853,32.86,124.79,124.7,23.34425174]
[1743412078151,32.86,124.79,124.72,8.0192]
[1743412078457,31.36001185,124.78,124.71,6.2595]
[1743412078854,31.36001185,124.78,124.72,8.0192]
[1743412079049,0.05959689,124.76,124.73,0.05607136]
[1743412079357,32.86,124.75,124.73,0.05607136]
[1743412079757,32.86,124.75,124.73,8.07467136]
[1743412080158,0.05959689,124.76,124.73,0.05607136]
[1743412080659,0.05959689,124.76,124.75,8.0174]
[1743412081050,0.05959689,124.76,124.73,0.05607136]
[1743412081051,0.05959689,124.76,124.74,8.0179]
[1743412081554,0.05959689,124.76,124.75,8.0174]
[1743412081952,0.05959689,124.76,124.73,0.05607136]
[1743412082358,0.05959689,124.76,124.74,8.0175]
[1743412082557,0.05959689,124.76,124.73,0.05607136]
[1743412082957,0.05959689,124.76,124.75,8.0174]
[1743412085759,56.06421185,124.82,124.73,0.05607136]
[1743412086056,23.34421185,124.84,124.74,23.34421185]
[1743412086259,32.7,124.83,124.76,23.34421185]
[1743412086453,32.7,124.83,124.77,6.1813]
[1743412086758,32.7,124.83,124.79,0.05498222]
[1743412086959,0.05939991,124.82,124.79,0.05498222]
[1743412087756,8.0091,124.88,124.82,8.0127]
[1743412087959,56.02421185,124.9,124.78,56.00421185]
[1743412088155,23.34421185,124.88,124.78,32.66]
[1743412088361,8.0114,124.85,124.79,8.0146]
[1743412088659,0.05509488,124.83,124.81,0.05999803]
[1743412089455,23.34421185,124.82,124.81,0.05999803]
[1743412089660,23.34421185,124.82,124.77,3.1209]
[1743412089871,32.84,124.81,124.77,3.1209]
[1743412090360,8.0145,124.8,124.77,3.1209]
[1743412090556,23.34421185,124.8,124.73,32.84]
[1743412090861,0.05340609,124.78,124.75,0.05249816]
[1743412093656,32.83340609,124.78,124.75,0.05249816]
[1743412094363,40.84920609,124.78,124.75,0.05249816]
[1743412094566,32.83340609,124.78,124.75,0.05249816]
[1743412094866,17.41501753,124.87,124.75,0.05249816]
[1743412094867,40.812,124.84,124.79,8.0143]
[1743412095073,32.8,124.85,124.76,56.14421185]
[1743412095359,8.0107,124.86,124.76,56.14421185]
[1743412095567,32.82,124.87,124.76,56.14421185]
[1743412095865,14.5530097,124.86,124.77,14.5530097]
[1743412096060,0.05360064,124.83,124.8,0.05616191]
[1743412097565,0.05360064,124.83,124.8,8.07026191]
[1743412097962,8.06620064,124.83,124.8,0.05616191]
[1743412098175,0.05360064,124.83,124.8,0.05616191]
[1743412098572,8.0134,124.82,124.8,0.05616191]
[1743412099772,8.0136,124.81,124.8,0.05616191]
[1743412100667,8.0134,124.82,124.8,0.05616191]
[1743412100868,32.75360064,124.83,124.8,0.05616191]
[1743412103468,32.75360064,124.83,124.8,8.07016191]
[1743412103765,0.05360064,124.83,124.8,0.05616191]
[1743412103954,311.72622125,124.89,124.8,0.05616191]
[1743412104160,32.62,124.87,124.78,55.88622125]
[1743412104561,32.62,124.87,124.84,8.0112]
[1743412104762,40.6301,124.87,124.84,8.0112]
[1743412105165,40.68682777,124.87,124.84,8.07079717]
[1743412105368,8.0104,124.86,124.84,8.07079717]
[1743412105559,32.67672777,124.87,124.84,8.07079717]
[1743412106166,40.68682777,124.87,124.84,8.07079717]
[1743412106464,32.67672777,124.87,124.84,8.07079717]
[1743412106967,8.06682777,124.87,124.84,8.07079717]
[1743412107363,0.05672777,124.87,124.86,8.0104]
[1743412107668,0.05672777,124.87,124.84,0.05959717]
[1743412108270,8.06672777,124.87,124.84,0.05959717]
[1743412108568,0.05672777,124.87,124.84,0.05959717]
[1743412109364,8.011,124.85,124.84,0.05959717]
[1743412111271,8.0107,124.86,124.84,0.05959717]
[1743412111772,0.05672777,124.87,124.84,0.05959717]
[1743412111971,8.011,124.85,124.84,0.05959717]
[1743412112172,0.05672777,124.87,124.84,0.05959717]
[1743412112665,8.011,124.85,124.84,0.05959717]
[1743412113271,40.391,124.85,124.84,0.05959717]
[1743412114781,55.66622125,124.85,124.76,3.1753]
[1743412114960,23.28622125,124.83,124.76,3.1753]
[1743412115168,8.0151,124.79,124.76,3.1753]
[1743412115371,32.36,124.82,124.76,3.1753]
[1743412115571,23.28622125,124.81,124.72,6.2661]
[1743412115867,23.28622125,124.79,124.72,9.3962]
[1743412116072,32.34,124.78,124.75,0.05443325]
[1743412116271,8.0168,124.76,124.75,0.05443325]
[1743412117072,23.33695513,124.77,124.69,3.0568]
[1743412117269,23.28622125,124.77,124.69,3.0568]
[1743412117473,23.28622125,124.77,124.69,11.0778]
[1743412117672,8.0191,124.73,124.69,11.0778]
[1743412117874,32.34,124.73,124.69,3.0568]
[1743412118075,32.34,124.73,124.68,6.3394]
[1743412118275,0.05964666,124.72,124.7,0.05124462]
[1743412123982,0.05964666,124.72,124.71,8.02]
[1743412124776,0.05964666,124.72,124.7,0.05124462]
[1743412124981,0.05964666,124.72,124.7,8.07164462]
[1743412125176,0.05964666,124.72,124.7,0.05124462]
[1743412126181,8.02,124.71,124.7,0.05124462]
[1743412126383,0.05964666,124.72,124.7,0.05124462]
[1743412126582,8.07934666,124.72,124.7,0.05124462]
[1743412127479,8.02,124.71,124.7,0.05124462]
[1743412127981,8.07924666,124.72,124.7,0.05124462]
[1743412128377,0.05964666,124.72,124.7,0.05124462]
[1743412128673,8.02,124.71,124.7,0.05124462]
[1743412136180,22.66189706,124.72,124.7,0.05124462]
[1743412136483,8.07934666,124.72,124.7,0.05124462]
[1743412136687,0.05964666,124.72,124.7,0.05124462]
[1743412136879,8.02,124.71,124.7,0.05124462]
[1743412137581,0.05964666,124.72,124.7,0.05124462]
[1743412137785,320.4,124.8,124.7,22.65379502]
[1743412137984,320.4,124.8,124.75,8.0174]
[1743412138185,320.4,124.8,124.72,14.5825504]
[1743412138383,14.5825504,124.77,124.69,17.7390504]
[1743412138580,22.5978504,124.79,124.71,14.5825504]
[1743412138882,0.06009286,124.76,124.74,0.05229605]
[1743412139579,32.6,124.8,124.74,0.05229605]
[1743412139781,8.0151,124.79,124.74,0.05229605]
[1743412140086,14.5825504,124.79,124.75,8.0171]
[1743412140488,14.5825504,124.79,124.74,0.05229605]
[1743412140681,0.5839,124.84,124.74,0.05229605]
[1743412140682,32.67133337,124.78,124.74,0.05229605]
[1743412140878,32.67133337,124.78,124.73,14.5825504]
[1743412141083,32.67133337,124.78,124.75,0.05283771]
[1743412141287,0.05133337,124.78,124.75,0.05283771]
[1743412141782,0.05133337,124.78,124.76,8.0163]
[1743412142386,0.05133337,124.78,124.75,8.07003771]
[1743412142586,0.05133337,124.78,124.75,0.05283771]
[1743412142977,0.05133337,124.78,124.76,8.0164]
[1743412143485,0.05133337,124.78,124.77,8.0161]
[1743412143785,47.1025504,124.81,124.75,0.05283771]
[1743412144090,55.1161504,124.81,124.78,8.0152]
[1743412144288,47.1025504,124.81,124.73,14.5825504]
[1743412144487,8.0147,124.8,124.73,14.5825504]
[1743412144693,47.1025504,124.81,124.76,8.0164]
[1743412144992,0.05843058,124.8,124.77,0.05143389]
[1743412145295,14.5825504,124.79,124.74,3.0639]
[1743412145493,14.5825504,124.77,124.74,3.0639]
[1743412146394,14.63899366,124.77,124.74,3.12237761]
[1743412146687,8.07294326,124.77,124.74,3.12237761]
[1743412147393,8.07294326,124.77,124.74,11.14017761]
[1743412148094,8.0168,124.76,124.74,3.12237761]
[1743412149184,8.0168,124.76,124.74,11.14047761]
[1743412149690,8.07274326,124.77,124.74,11.14047761]
[1743412150290,8.0169,124.76,124.74,3.12237761]
[1743412150793,8.07304326,124.77,124.74,3.12237761]
[1743412150984,8.07304326,124.77,124.74,13.12237761]
[1743412151192,0.05644326,124.77,124.74,13.12237761]
[1743412151390,8.07304326,124.77,124.74,13.12237761]
[1743412151593,8.07304326,124.77,124.74,21.14017761]
[1743412151795,0.05644326,124.77,124.74,21.14017761]
[1743412152497,14.63899366,124.77,124.74,13.12237761]
[1743412152698,14.63899366,124.77,124.74,10.05847761]
[1743412153092,8.0174,124.75,124.74,10.05847761]
[1743412153796,40.3374,124.75,124.74,10.05847761]
[1743412154487,54.9199504,124.75,124.74,10.05847761]
[1743412157688,69.5051008,124.75,124.67,3.0114]
[1743412157892,14.5825504,124.7,124.67,3.0114]
[1743412158089,8.0217,124.69,124.67,3.0114]
[1743412158596,14.5825504,124.7,124.68,8.0214]
[1743412158798,0.05673601,124.69,124.67,3.06576549]
[1743412159098,0.05673601,124.69,124.67,11.08816549]
[1743412159297,14.5825504,124.68,124.67,0.05436549]
[1743412159803,22.6044504,124.68,124.67,0.05436549]
[1743412160099,54.8044504,124.68,124.67,0.05436549]
[1743412161793,69.3851008,124.68,124.56,30.6408504]
[1743412161999,14.5825504,124.65,124.59,6.5103]
[1743412162200,46.8025504,124.65,124.6,8.0267]
[1743412162599,46.8025504,124.65,124.59,6.5103]
[1743412162798,8.0255,124.63,124.6,8.0271]
[1743412162999,0.05221473,124.63,124.61,0.0544091]
[1743412163901,0.05221473,124.63,124.62,8.0258]
[1743412164301,0.05221473,124.63,124.61,0.0544091]
[1743412164497,14.5825504,124.66,124.61,0.0544091]
[1743412164899,14.5825504,124.66,124.59,6.5103]
[1743412165499,8.0242,124.65,124.61,8.0258]
[1743412165700,0.06062973,124.64,124.61,0.05425302]
[1743412166105,0.06062973,124.64,124.62,8.0255]
[1743412166403,8.08512973,124.64,124.61,0.05425302]
[1743412167005,8.08512973,124.64,124.61,8.08025302]
[1743412167906,8.0253,124.63,124.61,8.08025302]
[1743412168205,0.06062973,124.64,124.61,8.08025302]
[1743412168406,8.08552973,124.64,124.61,8.08025302]
[1743412169011,0.06062973,124.64,124.61,0.05425302]
[1743412169207,14.64318013,124.64,124.61,0.05425302]
[1743412169509,46.68318013,124.64,124.61,0.05425302]
[1743412170207,14.5825504,124.62,124.53,6.1304]
[1743412170506,32.02,124.61,124.53,6.1304]
[1743412170707,32.02,124.61,124.56,8.0294]
[1743412170910,32.02,124.61,124.53,6.1304]
[1743412171107,8.0293,124.57,124.53,6.1304]
[1743412171409,8.0293,124.57,124.56,0.0531716]
[1743412173213,40.14089895,124.58,124.56,0.0531716]
[1743412174412,40.14089895,124.58,124.56,8.0828716]
[1743412174714,0.05219895,124.58,124.56,0.0531716]
[1743412174918,0.05219895,124.58,124.57,8.029]
[1743412175612,0.05219895,124.58,124.56,0.0531716]
[1743412176013,0.05219895,124.58,124.56,8.0825716]
[1743412176314,0.05219895,124.58,124.56,0.0531716]
[1743412176512,0.05219895,124.58,124.56,8.0824716]
[1743412177214,0.05219895,124.58,124.57,8.029]
[1743412177415,14.5825504,124.62,124.56,0.0531716]
[1743412177610,31.96,124.63,124.56,0.0531716]
[1743412177811,8.0271,124.6,124.54,46.6025504]
[1743412178225,8.0271,124.6,124.57,8.0287]
[1743412178718,8.0283,124.59,124.57,0.05230407]
[1743412178919,0.0592444,124.6,124.57,0.05230407]
[1743412179316,8.0866444,124.6,124.57,0.05230407]
[1743412179516,0.0592444,124.6,124.57,0.05230407]
[1743412179919,0.0592444,124.6,124.59,8.0277]
[1743412182222,8.0228,124.67,124.59,8.02]
[1743412182421,610.01181296,124.7,124.6,46.4825504]
[1743412182422,288.56,124.7,124.6,46.4825504]
[1743412182720,8.0235,124.66,124.6,46.4825504]
[1743412182920,14.5825504,124.67,124.6,46.4825504]
[1743412183320,0.05311894,124.65,124.62,0.05631434]
[1743412183519,337.48231296,124.79,124.62,0.05631434]
[1743412183720,14.5825504,124.74,124.66,14.5825504]
[1743412183921,3.1034,124.75,124.68,14.5825504]
[1743412184118,35.1218,124.76,124.68,14.5825504]
[1743412184320,43.1389,124.76,124.71,8.0197]
[1743412184722,14.64418109,124.75,124.72,0.05171213]
[1743412185325,22.66188109,124.75,124.72,0.05171213]
[1743412185626,14.5825504,124.73,124.62,288.78]
[1743412185829,14.5825504,124.71,124.62,288.78]
[1743412186122,14.5825504,124.71,124.63,14.5825504]
[1743412186319,14.5825504,124.71,124.64,34.9899]
[1743412186516,31.96,124.72,124.65,14.5825504]
[1743412186719,31.96,124.72,124.66,0.0542247]
[1743412186720,0.05173879,124.69,124.66,0.0542247]
[1743412186920,0.05173879,124.69,124.68,8.0219]
[1743412187528,0.05173879,124.69,124.67,8.0222]
[1743412188016,0.05173879,124.69,124.66,0.0542247]
[1743412188622,0.05173879,124.69,124.68,8.0219]
[1743412188819,0.05173879,124.69,124.66,0.0542247]
[1743412189429,0.05173879,124.69,124.67,8.022]
[1743412190031,0.05173879,124.69,124.66,0.0542247]
[1743412190529,0.05173879,124.69,124.67,8.0221]
[1743412190726,0.05173879,124.69,124.66,0.0542247]
[1743412191233,0.05173879,124.69,124.66,8.0768247]
[1743412191433,0.05173879,124.69,124.66,0.0542247]
[1743412191821,0.05173879,124.69,124.66,8.0770247]
[1743412192329,0.05173879,124.69,124.66,0.0542247]
[1743412192531,8.0223,124.68,124.66,0.0542247]
[1743412193127,8.0226,124.67,124.66,0.0542247]
[1743412193432,46.45428919,124.69,124.61,6.5036]
[1743412193628,46.4025504,124.69,124.61,6.5036]
[1743412193822,8.0238,124.66,124.61,6.5036]
[1743412194027,46.4025504,124.69,124.62,8.0253]
[1743412194232,46.4025504,124.69,124.6,14.5825504]
[1743412194427,8.0246,124.64,124.6,14.5825504]
[1743412194628,31.83940817,124.66,124.63,0.05125852]
[1743412194823,31.78,124.66,124.63,0.05125852]
[1743412195033,31.83954475,124.66,124.63,0.05125852]
[1743412195331,8.0243,124.65,124.63,0.05125852]
[1743412195731,31.83954475,124.66,124.64,8.0245]
[1743412195923,31.83954475,124.66,124.63,0.05125852]
[1743412196333,39.86304475,124.66,124.63,0.05125852]
[1743412196531,31.83954475,124.66,124.63,0.05125852]
[1743412196933,8.0239,124.65,124.63,0.05125852]
[1743412197131,31.83954475,124.66,124.63,0.05125852]
[1743412197331,31.83954475,124.66,124.63,8.07605852]
[1743412197734,31.83954475,124.66,124.63,0.05125852]
[1743412197924,8.0239,124.65,124.63,0.05125852]
[1743412198333,31.83954475,124.66,124.63,0.05125852]
[1743412198530,8.0239,124.65,124.63,0.05125852]
[1743412198927,31.83954475,124.66,124.63,8.07615852]
[1743412199123,39.86294475,124.66,124.63,8.07615852]
[1743412200335,8.0239,124.65,124.63,0.05125852]
[1743412200740,0.05954475,124.66,124.63,0.05125852]
[1743412200933,0.05954475,124.66,124.63,14.63380892]
[1743412201126,0.05954475,124.66,124.63,0.05125852]
[1743412201530,8.0245,124.64,124.63,0.05125852]
[1743412202132,8.0241,124.65,124.63,0.05125852]
[1743412202831,8.0245,124.64,124.63,0.05125852]
[1743412203138,0.05954475,124.66,124.63,0.05125852]
[1743412203435,8.0244,124.65,124.63,0.05125852]
[1743412203836,0.05954475,124.66,124.63,0.05125852]
[1743412204635,14.5825504,124.65,124.55,14.5825504]
[1743412204837,14.5825504,124.63,124.55,14.5825504]
[1743412205140,14.5825504,124.57,124.46,253.89415321]
[1743412205328,47.5025504,124.57,124.49,94.55126372]
[1743412205734,0.05233321,124.54,124.52,0.05486664]
[1743412205932,33.05233321,124.54,124.52,0.05486664]
[1743412206235,8.0316,124.53,124.52,0.05486664]
[1743412206736,8.0335,124.5,124.49,88.12706372]
[1743412207132,8.0335,124.5,124.49,72.87786372]
[1743412207331,8.0314,124.54,124.49,59.46176372]
[1743412207535,47.6225504,124.6,124.52,14.5825504]
[1743412207835,0.05114324,124.53,124.52,14.5825504]
[1743412208035,14.5825504,124.58,124.5,14.5825504]
[1743412208340,33.1,124.6,124.55,8.0301]
[1743412208534,33.1,124.6,124.54,14.5825504]
[1743412208735,33.1,124.6,124.52,14.5825504]
[1743412209033,321.94,124.61,124.53,8.0312]
[1743412209430,0.05928854,124.58,124.56,0.05552452]
[1743412210139,33.17928854,124.58,124.56,0.05552452]
[1743412210535,56.56099026,124.58,124.49,9.9786]
[1743412210741,56.50170172,124.58,124.49,9.9786]
[1743412211243,56.50170172,124.58,124.49,6.6752]
[1743412211535,8.0303,124.56,124.5,8.0333]
[1743412211841,0.0575923,124.55,124.52,0.0525602]
[1743412212440,33.4975923,124.55,124.52,0.0525602]
[1743412212639,8.0316,124.53,124.52,0.0525602]
[1743412212838,33.4975923,124.55,124.52,0.0525602]
[1743412213340,23.38170172,124.54,124.52,0.03172503]
[1743412213644,33.56,124.53,124.52,0.03172503]
[1743412214234,8.031,124.54,124.52,0.03172503]
[1743412214440,33.54,124.53,124.52,0.03172503]
[1743412214840,330.44,124.53,124.39,358.0]
[1743412215143,23.38170172,124.44,124.38,6.3081]
[1743412215339,8.0391,124.42,124.38,14.3494]
[1743412215541,8.0391,124.42,124.38,8.0413]
[1743412215743,8.0391,124.42,124.36,3.2587]
[1743412215744,23.38170172,124.44,124.36,3.2587]
[1743412215942,34.46,124.43,124.38,8.041]
[1743412216248,0.0606901,124.41,124.39,0.05688581]
[1743412216441,0.0606901,124.41,124.39,8.09708581]
[1743412216641,0.0606901,124.41,124.39,0.05688581]
[1743412217040,0.0606901,124.41,124.4,8.04]
[1743412218037,34.7,124.46,124.43,8.038]
[1743412218343,34.7,124.46,124.38,35.72]
[1743412218539,59.24170172,124.52,124.45,8.0362]
[1743412218735,59.24170172,124.52,124.44,35.88]
[1743412218936,23.38170172,124.5,124.44,35.88]
[1743412219246,8.08781352,124.48,124.46,0.05664851]
[1743412219741,0.05261352,124.48,124.46,0.05664851]
[1743412220043,8.0355,124.47,124.46,0.05664851]
[1743412220246,0.05261352,124.48,124.46,0.05664851]
[1743412221147,8.0355,124.47,124.46,0.05664851]
[1743412221442,0.05261352,124.48,124.46,0.05664851]
[1743412222045,0.05261352,124.48,124.47,8.0355]
[1743412222246,0.05261352,124.48,124.46,0.05664851]
[1743412223048,23.43431524,124.48,124.37,36.6]
[1743412223247,23.38170172,124.45,124.38,3.2493]
[1743412223844,23.38170172,124.43,124.34,36.66]
[1743412224155,23.38170172,124.41,124.34,43.285]
[1743412224342,0.05277997,124.4,124.37,0.0528355]
[1743412224846,8.0411,124.39,124.37,0.0528355]
[1743412225440,0.05277997,124.4,124.37,0.0528355]
[1743412226039,23.43448169,124.4,124.37,0.0528355]
[1743412227145,8.0413,124.38,124.37,0.0528355]
[1743412227350,0.05277997,124.4,124.37,0.0528355]
[1743412227950,23.38170172,124.38,124.37,0.0528355]
[1743412228145,31.42300172,124.38,124.37,0.0528355]
[1743412228548,23.38170172,124.36,124.28,6.2822]
[1743412228747,23.38170172,124.36,124.29,40.3709]
[1743412228949,23.38170172,124.38,124.29,40.3709]
[1743412229349,36.8,124.39,124.29,63.75260172]
[1743412229544,0.0582216,124.35,124.32,0.05738503]
[1743412229749,0.0582216,124.35,124.34,8.0439]
[1743412230552,0.0582216,124.35,124.32,37.12161959]
[1743412230958,0.0582216,124.35,124.32,45.16641959]
[1743412231248,0.0582216,124.35,124.32,37.12161959]
[1743412231952,8.0407,124.39,124.32,37.12161959]
[1743412232148,23.38170172,124.4,124.36,8.0422]
[1743412232345,23.38170172,124.4,124.32,37.06]
[1743412232750,23.38170172,124.43,124.32,37.06]
[1743412232949,0.05221577,124.37,124.35,0.05904859]
[1743412233146,31.42020172,124.43,124.36,37.48]
[1743412233452,31.42020172,124.43,124.36,40.8468]
[1743412234056,23.38170172,124.43,124.34,3.1039]
[1743412234256,23.44142519,124.41,124.38,0.06076297]
[1743412234454,31.48132519,124.41,124.38,8.10196297]
[1743412234646,0.05972347,124.41,124.38,0.06076297]